{"text_format":"1","workbook":"xlsx","n_sheets":1,"sheets":["вых субб,воскр"],"not_rendered":{"charts":0,"images":0,"macros":1,"external_links":0,"defined_names":0,"comments":0,"pivot_tables":0},"unopened":[],"bounds":{"document_bytes":16777216,"sheet_cells":100000,"rows_first":2000,"rows_last":500,"rows_between":2000,"halvings":0,"cell_chars":16384,"cell_head_chars":4096},"cells_cut":0,"cells_raw":0,"read":"whole","date_system":"1900"}

{"sheet":"вых субб,воскр","index":0,"n_rows":19,"n_cols":56,"rows_kept":19,"cut":false,"hidden":false,"merged":[[0,26,0,34],[1,36,2,36],[1,37,2,37],[1,38,2,38],[1,39,2,39],[6,59,6,60],[1,53,2,53],[1,54,2,54],[2,1,2,5],[2,6,2,11],[2,12,2,17],[2,18,2,23],[2,24,2,29],[2,30,2,34],[1,47,2,47],[1,48,2,48],[1,49,2,49],[1,50,2,50],[1,51,2,51],[1,52,2,52],[1,41,2,41],[2,59,2,60],[3,36,3,55],[3,59,3,60],[4,59,4,60],[5,59,5,60],[1,42,2,42],[1,43,2,43],[1,44,2,44],[1,45,2,45],[1,46,2,46],[1,40,2,40],[11,1,11,5],[11,6,11,11],[11,12,11,17],[11,18,11,23],[11,24,11,29],[22,19,22,20],[23,19,23,20],[24,19,24,20],[25,19,25,20],[7,36,7,55],[11,30,11,34],[15,35,15,62],[16,35,16,62],[17,35,17,62],[20,0,20,19],[21,19,21,20]]}
["ПРОИЗВОДСТВЕННЫЙ КАЛЕНДАРЬ (вых - суббота,воскресенье)",null,null,null,null,null,null,null,null,null,null,null,null,null,null,null,null,null,null,null,null,null,null,null,null,null,"НА 2016 ГОД"]
[null,null,null,null,null,null,null,null,null,null,null,null,null,null,null,null,null,null,null,null,null,null,null,null,null,null,null,null,null,null,null,null,null,null,null,null,"2015 год","Январь","Февраль","Март","I квартал","Апрель","Май","Июнь","II квартал","1-е полу­годие","Июль","Август","Сентябрь","III квартал","Октябрь","Ноябрь","Декабрь","IV квартал","2-е полу­годие",2015]
[null,"Январь",null,null,null,null,"Февраль",null,null,null,null,null,"Март",null,null,null,null,null,"Апрель",null,null,null,null,null,"Май",null,null,null,null,null,"Июнь",null,null,null,null,null,null,null,null,null,null,null,null,null,null,null,null,null,null,null,null,null,null,null,null,"год"]
["Понедельник",null,4,11,18,25,1,8,15,22,29,null,null,7,14,21,28,null,null,null,null,null,null,null,null,null,null,null,null,null,null,null,null,null,null,null,"Количество дней"]
["Вторник",null,5,12,19,26,2,9,16,23,null,null,1,8,15,22,29,null,null,null,null,null,null,null,null,null,null,null,null,null,null,null,null,null,null,null,"Календарные дни",31,29,31,90,null,null,null,null,null,null,null,null,null,null,null,null,null,184,365]
["Среда",null,6,13,20,27,3,10,17,24,null,null,2,9,16,23,30,null,null,null,null,null,null,null,null,null,null,null,null,null,null,null,null,null,null,null,"Рабочие дни",{"$f":"GetBlackTxt(B4:F10)","v":15},{"$f":"GetBlackTxt(G4:K10)","v":20},{"$f":"GetBlackTxt(M4:Q10)","v":21},55,null,null,null,null,null,null,null,null,null,null,null,null,null,131,247]
["Четверг",null,7,14,21,28,4,11,18,25,null,null,3,10,17,24,31,null,null,null,null,null,null,null,null,null,null,null,null,null,null,null,null,null,null,null,"Выходные и праздничные дни",16,9,10,35,null,null,null,null,null,null,null,null,null,null,null,null,null,53,118]
["Пятница",1,8,15,22,29,5,12,19,26,null,null,4,11,18,25,null,null,null,null,null,null,null,null,null,null,null,null,null,null,null,null,null,null,null,null,"Рабочее время (в часах)"]
["Суббота",2,9,16,23,30,6,13,"20*",27,null,null,5,12,19,26,null,null,null,null,null,null,null,null,null,null,null,null,null,null,null,null,null,null,null,null,"при 40-часовой рабочей неделе",120,152,168,{"$f":"SUM(AL9:AN9)","v":440},null,null,null,null,null,null,null,null,null,null,null,null,null,{"$f":"SUM(AX9,BB9)","v":0},{"$f":"AT9+BC9","v":0}]
["Воскресенье",3,10,17,24,31,7,14,21,28,null,null,6,13,20,27,null,null,null,null,null,null,null,null,null,null,null,null,null,null,null,null,null,null,null,null,"при 39-часовой рабочей неделе",{"$f":"AL6*7.8","v":117},{"$f":"AM6*7.8","v":156},163.79999999999998,{"$f":"SUM(AL10:AN10)","v":436.79999999999995},null,null,null,null,null,null,null,null,null,null,null,null,null,{"$f":"SUM(AX10,BB10)","v":0},{"$f":"AT10+BC10","v":0}]
[null,null,null,null,null,null,null,null,null,null,null,null,null,null,null,null,null,null,null,null,null,null,null,null,null,null,null,null,null,null,null,null,null,null,null,null,"при 36-часовой рабочей неделе",108,136.80000000000001,151.19999999999999,396,null,null,null,null,null,null,null,null,null,null,null,null,null,0,0]
[null,"Июль",null,null,null,null,"Август",null,null,null,null,null,"Сентябрь",null,null,null,null,null,"Октябрь",null,null,null,null,null,"Ноябрь",null,null,null,null,null,"Декабрь",null,null,null,null,null,"при 35-часовой рабочей неделе",{"$f":"AL6*7","v":105},{"$f":"AM6*7","v":140},147,392,null,null,null,null,null,null,null,null,null,null,null,null,null,0,0]
["Понедельник",null,null,null,null,null,null,null,null,null,null,null,null,null,null,null,null,null,null,null,null,null,null,null,null,null,null,null,null,null,null,null,null,null,null,null,"при 24-часовой рабочей неделе",72,91.2,100.8,264,null,null,null,null,null,null,null,null,null,null,null,null,null,0,0]
["Вторник"]
["Среда",null,null,null,null,null,null,null,null,null,null,null,null,null,null,null,null,null,null,null,null,null,null,null,null,null,null,null,null,null,null,null,null,null,null,null,"Можно ли сделать так:"]
["Четверг",null,null,null,null,null,null,null,null,null,null,null,null,null,null,null,null,null,null,null,null,null,null,null,null,null,null,null,null,null,null,null,null,null,null,"В графе календарные дни - чтобы считалось исходя из граф (c В4-F4 по В10-F10) - сколько заполненных квадратиков"]
["Пятница",null,null,null,null,null,null,null,null,null,null,null,null,null,null,null,null,null,null,null,null,null,null,null,null,null,null,null,null,null,null,null,null,null,null,"В графе рабочие дни - чтобы считалось исходя из граф (c В4-F4 по В10-F10) - сколько черных квадратиков"]
["Суббота",null,null,null,null,null,null,null,null,null,null,null,null,null,null,null,null,null,null,null,null,null,null,null,null,null,null,null,null,null,null,null,null,null,null,"В графе выходные и праздничные дни - чтобы считалось исходя из граф (c В4-F4 по В10-F10) - сколько красных и зеленых  квадратиков"]
["Воскресенье"]